Workbook

Sheet 10.12.2024
E1: ______________Утверждаю Директор ГБОУ Белокатайская КШИ
A2: МЕНЮ
B3: ="10 декабря 2024 г." -> 10 декабря 2024 г.
B5: ГБОУ Белокатайская КШИ
B6: =Группа -> школы младшие классы
A7: ГБОУ Белокатайская КШИ | C7: =Группа -> школы младшие классы
A8: Код блюда | B8: Наименование блюда | C8: Выход, г | D8: Белки, г | F8: Жиры, г | H8: Углево-ды, г | I8: ЭЦ, ккал | J8: НЖК | K8: ПНЖК | L8: МЖК | M8: Холестерин | N8: МД | O8: Крахмал | P8: ПВ | Q8: РПВ | R8: НПВ | S8: Органические кислоты | T8: Зола | U8: Na | V8: K | W8: Ca | X8: Mg | Y8: P | Z8: Fe | AA8: Витамин А | AB8: B | AC8: РЭ | AD8: ТЭ | AE8: В1 | AF8: В2 | AG8: РР | AH8: НЭ | AI8: С | AJ8: Алкоголь, г | AK8: Валин | AL8: изолейцин | AM8: лейцин | AN8: лизин | AO8: метионин | AP8: треонин | AQ8: триптофан | AR8: фенилаланин | AS8: аланин | AT8: аргинин | AU8: аспарагиновая | AV8: гистидин | AW8: глицин | AX8: глутаминовая | AY8: оксипролин | AZ8: пролин | BA8: серин | BB8: тирозин | BC8: цистин | BD8: масляная | BE8: капроновая | BF8: каприловая | BG8: каприновая | BH8: лауриновая | BI8: миристиновая | BJ8: пентадекановая | BK8: пальмитиновая | BL8: маргариновая | BM8: стеариновая | BN8: арахиновая | BO8: бегеновая | BP8: лигноцериновая | BQ8: миристолеиновая | BR8: пальмитолеиновая | BS8: олеиновая | BT8: гадолеиновая | BU8: эруковая | BV8: линолевая | BW8: линоленовая | BX8: арахидоновая | BY8: Аденин | BZ8: Гуанин | CA8: Ph
D9: всего | E9: в т.ч. жив. | F9: всего | G9: в т.ч. раст.
B10: Завтрак
A11: ="" ->  | B11: Омлет с зеленым горошком №235, сб.2018г. | C11: ="200" -> 200 | D11: 17.49 | E11: 17.62 | F11: 19.39 | G11: 0.06 | H11: 6.28 | I11: 263.18 | J11: 0 | K11: 0 | L11: 0 | M11: 0 | N11: 3.92 | O11: 0.93 | P11: 1.43 | Q11: 0 | R11: 0 | S11: 0 | T11: 2.44 | U11: 256.53 | V11: 248.45 | W11: 120.57 | X11: 25.03 | Y11: 269.67 | Z11: 3.03 | AA11: 215.82 | AB11: 160.92 | AC11: 0 | AD11: 0 | AE11: 0.1 | AF11: 0.53 | AG11: 0.43 | AH11: 0 | AI11: 1.53 | AJ11: 0 | AK11: 0 | AL11: 0 | AM11: 0 | AN11: 0 | AO11: 0 | AP11: 0 | AQ11: 0 | AR11: 0 | AS11: 0 | AT11: 0 | AU11: 0 | AV11: 0 | AW11: 0 | AX11: 0 | AY11: 0 | AZ11: 0 | BA11: 0 | BB11: 0 | BC11: 0 | BD11: 0 | BE11: 0 | BF11: 0 | BG11: 0 | BH11: 0 | BI11: 0 | BJ11: 0 | BK11: 0 | BL11: 0 | BM11: 0 | BN11: 0 | BO11: 0 | BP11: 0 | BQ11: 0 | BR11: 0 | BS11: 0 | BT11: 0 | BU11: 0 | BV11: 0 | BW11: 0 | BX11: 0 | BY11: 0 | BZ11: 0 | CA11: 0 | CB11: 0 | CC11: 56.68 | CE11: 242.64 | CG11: 0 | CH11: 0 | CI11: 0 | CJ11: 0 | CK11: 0 | CL11: 0 | CM11: 0 | CN11: 0 | CO11: 0 | CP11: 0 | CQ11: 0.3
A12: ="аа" -> аа | B12: Бутерброд с маслом и сыром №2 сб.2018г. | C12: ="30/10/10" -> 30/10/10 | D12: 4.99 | E12: 2.71 | F12: 10.18 | G12: 0.27 | H12: 14.20 | I12: 170.02 | J12: 6.24 | K12: 0.22 | L12: 1.53 | M12: 0 | N12: 0.46 | O12: 13.68 | P12: 0.06 | Q12: 0 | R12: 0 | S12: 0.2 | T12: 1.11 | U12: 111.5 | V12: 13 | W12: 102.4 | X12: 5.5 | Y12: 63 | Z12: 0.09 | AA12: 61 | AB12: 47 | AC12: 68.8 | AD12: 0.14 | AE12: 0 | AF12: 0.05 | AG12: 0.03 | AH12: 0.7 | AI12: 0.07 | AJ12: 0 | AK12: 271.3 | AL12: 235.7 | AM12: 413.1 | AN12: 220.7 | AO12: 92.2 | AP12: 168.7 | AQ12: 100.4 | AR12: 263 | AS12: 157 | AT12: 197.6 | AU12: 250.8 | AV12: 120.3 | AW12: 136.2 | AX12: 1223.6 | AY12: 0 | AZ12: 503.4 | BA12: 232.5 | BB12: 208.3 | BC12: 74.1 | BD12: 0.27 | BE12: 0.13 | BF12: 0.11 | BG12: 0.26 | BH12: 0.3 | BI12: 1.13 | BJ12: 0.04 | BK12: 2.94 | BL12: 0.01 | BM12: 0.84 | BN12: 0.01 | BO12: 0 | BP12: 0 | BQ12: 0.15 | BR12: 0.3 | BS12: 2.35 | BT12: 0 | BU12: 0 | BV12: 0.27 | BW12: 0.01 | BX12: 0 | BY12: 0 | BZ12: 0 | CA12: 0 | CB12: 18.31 | CC12: 16.92 | CE12: 68.83 | CG12: 0 | CH12: 0 | CI12: 0 | CJ12: 0 | CK12: 0 | CL12: 0 | CM12: 0 | CN12: 0 | CO12: 0 | CP12: 0 | CQ12: 0
A13: ="аа" -> аа | B13: Кофейный напиток на молоке №304,сб.2018г. | C13: ="200" -> 200 | D13: 2.86 | E13: 3.04 | F13: 2.82 | G13: 0.00 | H13: 14.91 | I13: 93.76 | J13: 2 | K13: 0 | L13: 0 | M13: 0 | N13: 14.91 | O13: 0 | P13: 0 | Q13: 0 | R13: 0 | S13: 0.1 | T13: 0.71 | U13: 50.1 | V13: 128.74 | W13: 105.86 | X13: 12.18 | Y13: 78.3 | Z13: 0.11 | AA13: 12 | AB13: 8 | AC13: 22 | AD13: 0 | AE13: 0.03 | AF13: 0.12 | AG13: 0.09 | AH13: 0.8 | AI13: 0.52 | AJ13: 0 | AK13: 0 | AL13: 0 | AM13: 0 | AN13: 0 | AO13: 0 | AP13: 0 | AQ13: 0 | AR13: 0 | AS13: 0 | AT13: 0 | AU13: 0 | AV13: 0 | AW13: 0 | AX13: 0 | AY13: 0 | AZ13: 0 | BA13: 0 | BB13: 0 | BC13: 0 | BD13: 0 | BE13: 0 | BF13: 0 | BG13: 0 | BH13: 0 | BI13: 0 | BJ13: 0 | BK13: 0 | BL13: 0 | BM13: 0 | BN13: 0 | BO13: 0 | BP13: 0 | BQ13: 0 | BR13: 0 | BS13: 0 | BT13: 0 | BU13: 0 | BV13: 0 | BW13: 0 | BX13: 0 | BY13: 0 | BZ13: 0 | CA13: 0 | CB13: 198.41 | CC13: 7.83 | CE13: 13.33 | CG13: 0 | CH13: 0 | CI13: 0 | CJ13: 0 | CK13: 0 | CL13: 0 | CM13: 0 | CN13: 0 | CO13: 0 | CP13: 8 | CQ13: 0
A14: ="-" -> - | B14: Хлеб пшеничный формовой из муки 1 сорта | C14: ="50" -> 50 | D14: 3.80 | E14: 0.00 | F14: 0.45 | G14: 0.45 | H14: 23.45 | I14: 114.82 | J14: 0 | K14: 0 | L14: 0 | M14: 0 | N14: 0.55 | O14: 22.8 | P14: 0.1 | Q14: 0 | R14: 0 | S14: 0 | T14: 0.9 | U14: 0 | V14: 0 | W14: 0 | X14: 0 | Y14: 0 | Z14: 0 | AA14: 0 | AB14: 0 | AC14: 0 | AD14: 0 | AE14: 0 | AF14: 0 | AG14: 0 | AH14: 0 | AI14: 0 | AJ14: 0 | AK14: 183.5 | AL14: 191 | AM14: 292.5 | AN14: 97 | AO14: 57.5 | AP14: 115 | AQ14: 43.5 | AR14: 208 | AS14: 129 | AT14: 180 | AU14: 148.5 | AV14: 78 | AW14: 138 | AX14: 1154 | AY14: 0 | AZ14: 376 | BA14: 163.5 | BB14: 108.5 | BC14: 86 | BD14: 0 | BE14: 0 | BF14: 0 | BG14: 0 | BH14: 0 | BI14: 0 | BJ14: 0 | BK14: 0.06 | BL14: 0 | BM14: 0.01 | BN14: 0 | BO14: 0 | BP14: 0 | BQ14: 0 | BR14: 0.01 | BS14: 0.05 | BT14: 0 | BU14: 0 | BV14: 0.19 | BW14: 0.01 | BX14: 0 | BY14: 0 | BZ14: 0 | CA14: 0 | CB14: 19.55 | CC14: 3.09 | CE14: 0 | CG14: 0 | CH14: 0 | CI14: 0 | CJ14: 0 | CK14: 0 | CL14: 0 | CM14: 0 | CN14: 0 | CO14: 0 | CP14: 0 | CQ14: 0
B15: Итого за 'Завтрак' | D15: 29.14 | E15: 23.37 | F15: 32.83 | G15: 0.78 | H15: 58.84 | I15: 641.78 | J15: 8.24 | K15: 0.22 | L15: 1.53 | M15: 0 | N15: 19.84 | O15: 37.41 | P15: 1.59 | Q15: 0 | R15: 0 | S15: 0.3 | T15: 5.16 | U15: 418.13 | V15: 390.19 | W15: 328.83 | X15: 42.71 | Y15: 410.97 | Z15: 3.23 | AA15: 288.82 | AB15: 215.92 | AC15: 90.8 | AD15: 0.14 | AE15: 0.14 | AF15: 0.7 | AG15: 0.55 | AH15: 1.5 | AI15: 2.12 | AJ15: 0 | AK15: 454.8 | AL15: 426.7 | AM15: 705.6 | AN15: 317.7 | AO15: 149.7 | AP15: 283.7 | AQ15: 143.9 | AR15: 471 | AS15: 286 | AT15: 377.6 | AU15: 399.3 | AV15: 198.3 | AW15: 274.2 | AX15: 2377.6 | AY15: 0 | AZ15: 879.4 | BA15: 396 | BB15: 316.8 | BC15: 160.1 | BD15: 0.27 | BE15: 0.13 | BF15: 0.11 | BG15: 0.26 | BH15: 0.3 | BI15: 1.13 | BJ15: 0.04 | BK15: 2.99 | BL15: 0.01 | BM15: 0.85 | BN15: 0.01 | BO15: 0 | BP15: 0 | BQ15: 0.15 | BR15: 0.31 | BS15: 2.39 | BT15: 0 | BU15: 0 | BV15: 0.46 | BW15: 0.02 | BX15: 0 | BY15: 0 | BZ15: 0 | CA15: 0 | CB15: 236.27 | CC15: =SUM($CC$10:$CC$14) -> 84.52 | CD15: =$I$15/$I$46*100 -> 36.41304965 | CE15: 324.81 | CG15: 0 | CH15: 0 | CI15: 0 | CJ15: 0 | CK15: 0 | CL15: 0 | CM15: 0 | CN15: 0 | CO15: 0 | CP15: 8 | CQ15: 0.3
B16: Завтрак 2
A17: ="-" -> - | B17: Кисель с витаминами Витошка | C17: ="200" -> 200 | D17: 0.00 | E17: 0.00 | F17: 0.00 | G17: 0.00 | H17: 7.11 | I17: 18.39 | J17: 0 | K17: 0 | L17: 0 | M17: 0 | N17: 3.43 | O17: 1.31 | P17: 2.38 | Q17: 0 | R17: 0 | S17: 0 | T17: 0 | U17: 0 | V17: 0 | W17: 0 | X17: 0 | Y17: 0 | Z17: 0 | AA17: 0.03 | AB17: 0 | AC17: 0 | AD17: 0 | AE17: 0.06 | AF17: 0.08 | AG17: 0.64 | AH17: 0 | AI17: 2.01 | AJ17: 0 | AK17: 0 | AL17: 0 | AM17: 0 | AN17: 0 | AO17: 0 | AP17: 0 | AQ17: 0 | AR17: 0 | AS17: 0 | AT17: 0 | AU17: 0 | AV17: 0 | AW17: 0 | AX17: 0 | AY17: 0 | AZ17: 0 | BA17: 0 | BB17: 0 | BC17: 0 | BD17: 0 | BE17: 0 | BF17: 0 | BG17: 0 | BH17: 0 | BI17: 0 | BJ17: 0 | BK17: 0 | BL17: 0 | BM17: 0 | BN17: 0 | BO17: 0 | BP17: 0 | BQ17: 0 | BR17: 0 | BS17: 0 | BT17: 0 | BU17: 0 | BV17: 0 | BW17: 0 | BX17: 0 | BY17: 0 | BZ17: 0 | CA17: 0 | CB17: 185 | CC17: 11.3 | CE17: 0.03 | CG17: 0 | CH17: 0 | CI17: 0 | CJ17: 0 | CK17: 0 | CL17: 0 | CM17: 0 | CN17: 0 | CO17: 0 | CP17: 0 | CQ17: 0
B18: Итого за 'Завтрак 2' | D18: 0.00 | E18: 0.00 | F18: 0.00 | G18: 0.00 | H18: 7.11 | I18: 18.39 | J18: 0 | K18: 0 | L18: 0 | M18: 0 | N18: 3.43 | O18: 1.31 | P18: 2.38 | Q18: 0 | R18: 0 | S18: 0 | T18: 0 | U18: 0 | V18: 0 | W18: 0 | X18: 0 | Y18: 0 | Z18: 0 | AA18: 0.03 | AB18: 0 | AC18: 0 | AD18: 0 | AE18: 0.06 | AF18: 0.08 | AG18: 0.64 | AH18: 0 | AI18: 2.01 | AJ18: 0 | AK18: 0 | AL18: 0 | AM18: 0 | AN18: 0 | AO18: 0 | AP18: 0 | AQ18: 0 | AR18: 0 | AS18: 0 | AT18: 0 | AU18: 0 | AV18: 0 | AW18: 0 | AX18: 0 | AY18: 0 | AZ18: 0 | BA18: 0 | BB18: 0 | BC18: 0 | BD18: 0 | BE18: 0 | BF18: 0 | BG18: 0 | BH18: 0 | BI18: 0 | BJ18: 0 | BK18: 0 | BL18: 0 | BM18: 0 | BN18: 0 | BO18: 0 | BP18: 0 | BQ18: 0 | BR18: 0 | BS18: 0 | BT18: 0 | BU18: 0 | BV18: 0 | BW18: 0 | BX18: 0 | BY18: 0 | BZ18: 0 | CA18: 0 | CB18: 185 | CC18: =SUM($CC$16:$CC$17) -> 11.3 | CD18: =$I$18/$I$46*100 -> 1.043404255 | CE18: 0.03 | CG18: 0 | CH18: 0 | CI18: 0 | CJ18: 0 | CK18: 0 | CL18: 0 | CM18: 0 | CN18: 0 | CO18: 0 | CP18: 0 | CQ18: 0
B19: Обед
A20: ="" ->  | B20: Салат из моркови с курагой или изюмом №18, сб.2018 г**. | C20: ="80" -> 80 | D20: 1.58 | E20: 0.00 | F20: 0.11 | G20: 0.00 | H20: 20.20 | I20: 69.35 | J20: 0.02 | K20: 0 | L20: 0.02 | M20: 0 | N20: 15.38 | O20: 0.59 | P20: 4.23 | Q20: 0 | R20: 0 | S20: 0.41 | T20: 1.22 | U20: 0 | V20: 386.94 | W20: 41.08 | X20: 38.81 | Y20: 55.23 | Z20: 0.93 | AA20: 0 | AB20: 7604.8 | AC20: 1293.28 | AD20: 1.12 | AE20: 0.05 | AF20: 0.07 | AG20: 1.06 | AH20: 1.28 | AI20: 3.57 | AJ20: 0 | AK20: 25.29 | AL20: 20.59 | AM20: 25.88 | AN20: 22.36 | AO20: 5.29 | AP20: 18.82 | AQ20: 4.71 | AR20: 18.24 | AS20: 28.23 | AT20: 24.12 | AU20: 79.43 | AV20: 8.24 | AW20: 17.06 | AX20: 138.2 | AY20: 0 | AZ20: 17.65 | BA20: 19.42 | BB20: 10.59 | BC20: 7.06 | BD20: 0 | BE20: 0 | BF20: 0 | BG20: 0 | BH20: 0 | BI20: 0 | BJ20: 0 | BK20: 0 | BL20: 0 | BM20: 0 | BN20: 0 | BO20: 0 | BP20: 0 | BQ20: 0 | BR20: 0 | BS20: 0.01 | BT20: 0 | BU20: 0 | BV20: 0.01 | BW20: 0 | BX20: 0 | BY20: 0 | BZ20: 0 | CA20: 0 | CB20: 56 | CC20: 9.33 | CE20: 1267.47 | CG20: 0 | CH20: 0 | CI20: 0 | CJ20: 0 | CK20: 0 | CL20: 0 | CM20: 0 | CN20: 0 | CO20: 0 | CP20: 4 | CQ20: 0
A21: ="аа" -> аа | B21: Борщ с капустой и картофелем №58, сб.2018 г. | C21: ="250" -> 250 | D21: 1.93 | E21: 0.28 | F21: 4.46 | G21: 0.00 | H21: 14.87 | I21: 98.23 | J21: 1.92 | K21: 0.09 | L21: 0.02 | M21: 0 | N21: 9.98 | O21: 2.84 | P21: 2.05 | Q21: 0 | R21: 0 | S21: 0.26 | T21: 2.18 | U21: 313.58 | V21: 388.27 | W21: 42.5 | X21: 29.73 | Y21: 72.24 | Z21: 1.57 | AA21: 9.6 | AB21: 1023.2 | AC21: 229.2 | AD21: 0.28 | AE21: 0.1 | AF21: 0.06 | AG21: 0.7 | AH21: 1.6 | AI21: 7.94 | AJ21: 0 | AK21: 136.1 | AL21: 146.78 | AM21: 208.72 | AN21: 208.31 | AO21: 34.29 | AP21: 119.65 | AQ21: 37.34 | AR21: 134.59 | AS21: 130.7 | AT21: 230.26 | AU21: 393 | AV21: 59.05 | AW21: 123.76 | AX21: 521.79 | AY21: 0 | AZ21: 101.07 | BA21: 123.67 | BB21: 101.97 | BC21: 36.85 | BD21: 0.09 | BE21: 0.04 | BF21: 0.02 | BG21: 0.05 | BH21: 0.06 | BI21: 0.28 | BJ21: 0 | BK21: 0.81 | BL21: 0 | BM21: 0.25 | BN21: 0 | BO21: 0 | BP21: 0 | BQ21: 0.05 | BR21: 0.08 | BS21: 0.7 | BT21: 0 | BU21: 0 | BV21: 0.15 | BW21: 0.01 | BX21: 0 | BY21: 0 | BZ21: 0 | CA21: 0 | CB21: 95.53 | CC21: 10.98 | CE21: 180.13 | CG21: 0 | CH21: 0 | CI21: 0 | CJ21: 0 | CK21: 0 | CL21: 0 | CM21: 0 | CN21: 0 | CO21: 0 | CP21: 3 | CQ21: 0.8
A22: ="" ->  | B22: Тефтели из говядины №108, сб. 2018 г. | C22: ="90" -> 90 | D22: 11.79 | E22: 10.05 | F22: 19.89 | G22: 4.39 | H22: 13.84 | I22: 277.59 | J22: 4.42 | K22: 0 | L22: 0.01 | M22: 0 | N22: 3.39 | O22: 9.34 | P22: 1.1 | Q22: 0 | R22: 0 | S22: 0.08 | T22: 1.63 | U22: 198.79 | V22: 243.78 | W22: 34.77 | X22: 18.18 | Y22: 131.45 | Z22: 1.69 | AA22: 2.6 | AB22: 1.3 | AC22: 3.96 | AD22: 0.37 | AE22: 0.03 | AF22: 0.08 | AG22: 2.04 | AH22: 5.14 | AI22: 0.13 | AJ22: 0 | AK22: 596.57 | AL22: 465.89 | AM22: 865.31 | AN22: 851.75 | AO22: 249.34 | AP22: 454.14 | AQ22: 122.63 | AR22: 479.83 | AS22: 603.83 | AT22: 596.36 | AU22: 961.2 | AV22: 392.64 | AW22: 530.1 | AX22: 1989.04 | AY22: 149.28 | AZ22: 483.57 | BA22: 462.44 | BB22: 374.99 | BC22: 162.17 | BD22: 0 | BE22: 0 | BF22: 0 | BG22: 0 | BH22: 0 | BI22: 0 | BJ22: 0 | BK22: 0.02 | BL22: 0 | BM22: 0 | BN22: 0 | BO22: 0 | BP22: 0 | BQ22: 0 | BR22: 0 | BS22: 0.02 | BT22: 0 | BU22: 0 | BV22: 0.08 | BW22: 0 | BX22: 0 | BY22: 0 | BZ22: 0 | CA22: 0 | CB22: 84.03 | CC22: 37.07 | CE22: 2.82 | CG22: 0 | CH22: 0 | CI22: 0 | CJ22: 0 | CK22: 0 | CL22: 0 | CM22: 0 | CN22: 0 | CO22: 0 | CP22: 0 | CQ22: 0.45
A23: ="аа" -> аа | B23: Рагу из овощей №158, сб. 2018 г. | C23: ="150" -> 150 | D23: 2.84 | E23: 0.03 | F23: 6.97 | G23: 0.00 | H23: 17.85 | I23: 136.62 | J23: 2.39 | K23: 4.36 | L23: 0.89 | M23: 0 | N23: 6.17 | O23: 9.22 | P23: 2.47 | Q23: 0 | R23: 0 | S23: 0.44 | T23: 1.93 | U23: 202.74 | V23: 448.19 | W23: 28.51 | X23: 21.26 | Y23: 50.83 | Z23: 0.87 | AA23: 2.75 | AB23: 267.64 | AC23: 98.87 | AD23: 3.16 | AE23: 0.05 | AF23: 0.05 | AG23: 0.81 | AH23: 1.85 | AI23: 3.47 | AJ23: 0 | AK23: 48.13 | AL23: 52.37 | AM23: 71.93 | AN23: 64.57 | AO23: 17.89 | AP23: 48.17 | AQ23: 18.41 | AR23: 56.57 | AS23: 68.95 | AT23: 132.49 | AU23: 118.28 | AV23: 24.01 | AW23: 49.59 | AX23: 300.78 | AY23: 0 | AZ23: 60.87 | BA23: 50.28 | BB23: 42.87 | BC23: 19.59 | BD23: 0.06 | BE23: 0.03 | BF23: 0.01 | BG23: 0.03 | BH23: 0.04 | BI23: 0.17 | BJ23: 0 | BK23: 0.83 | BL23: 0 | BM23: 0.37 | BN23: 0.02 | BO23: 0.04 | BP23: 0 | BQ23: 0.03 | BR23: 0.05 | BS23: 1.68 | BT23: 0 | BU23: 0 | BV23: 3.99 | BW23: 0 | BX23: 0 | BY23: 0 | BZ23: 0 | CA23: 0 | CB23: 145.55 | CC23: 10.33 | CE23: 47.36 | CG23: 0 | CH23: 0 | CI23: 0 | CJ23: 0 | CK23: 0 | CL23: 0 | CM23: 0 | CN23: 0 | CO23: 0 | CP23: 0.5 | CQ23: 0.5
A24: ="" ->  | B24: Чай с лимоном и сахаром №302, сб. 2018 г. | C24: ="180" -> 180 | D24: 0.22 | E24: 0.00 | F24: 0.05 | G24: 0.05 | H24: 5.31 | I24: 21.79 | J24: 0 | K24: 0 | L24: 0 | M24: 0 | N24: 5.11 | O24: 0 | P24: 0.2 | Q24: 0 | R24: 0 | S24: 0.36 | T24: 0.09 | U24: 0.05 | V24: 9.18 | W24: 2.36 | X24: 0.66 | Y24: 1.21 | Z24: 0.05 | AA24: 0 | AB24: 0.5 | AC24: 0.13 | AD24: 0.01 | AE24: 0 | AF24: 0 | AG24: 0.01 | AH24: 0.01 | AI24: 1.01 | AJ24: 0 | AK24: 0 | AL24: 0 | AM24: 0 | AN24: 0 | AO24: 0 | AP24: 0 | AQ24: 0 | AR24: 0 | AS24: 0 | AT24: 0 | AU24: 0 | AV24: 0 | AW24: 0 | AX24: 0 | AY24: 0 | AZ24: 0 | BA24: 0 | BB24: 0 | BC24: 0 | BD24: 0 | BE24: 0 | BF24: 0 | BG24: 0 | BH24: 0 | BI24: 0 | BJ24: 0 | BK24: 0 | BL24: 0 | BM24: 0 | BN24: 0 | BO24: 0 | BP24: 0 | BQ24: 0 | BR24: 0 | BS24: 0 | BT24: 0 | BU24: 0 | BV24: 0 | BW24: 0 | BX24: 0 | BY24: 0 | BZ24: 0 | CA24: 0 | CB24: 170.31 | CC24: 2.13 | CE24: 0.08 | CG24: 0 | CH24: 0 | CI24: 0 | CJ24: 0 | CK24: 0 | CL24: 0 | CM24: 0 | CN24: 0 | CO24: 0 | CP24: 5.4 | CQ24: 0
A25: ="-" -> - | B25: Хлеб пшеничный формовой из муки 1 сорта | C25: ="20" -> 20 | D25: 1.52 | E25: 0.00 | F25: 0.18 | G25: 0.18 | H25: 9.38 | I25: 45.93 | J25: 0 | K25: 0 | L25: 0 | M25: 0 | N25: 0.22 | O25: 9.12 | P25: 0.04 | Q25: 0 | R25: 0 | S25: 0 | T25: 0.36 | U25: 0 | V25: 0 | W25: 0 | X25: 0 | Y25: 0 | Z25: 0 | AA25: 0 | AB25: 0 | AC25: 0 | AD25: 0 | AE25: 0 | AF25: 0 | AG25: 0 | AH25: 0 | AI25: 0 | AJ25: 0 | AK25: 73.4 | AL25: 76.4 | AM25: 117 | AN25: 38.8 | AO25: 23 | AP25: 46 | AQ25: 17.4 | AR25: 83.2 | AS25: 51.6 | AT25: 72 | AU25: 59.4 | AV25: 31.2 | AW25: 55.2 | AX25: 461.6 | AY25: 0 | AZ25: 150.4 | BA25: 65.4 | BB25: 43.4 | BC25: 34.4 | BD25: 0 | BE25: 0 | BF25: 0 | BG25: 0 | BH25: 0 | BI25: 0 | BJ25: 0 | BK25: 0.02 | BL25: 0 | BM25: 0 | BN25: 0 | BO25: 0 | BP25: 0 | BQ25: 0 | BR25: 0 | BS25: 0.02 | BT25: 0 | BU25: 0 | BV25: 0.08 | BW25: 0 | BX25: 0 | BY25: 0 | BZ25: 0 | CA25: 0 | CB25: 7.82 | CC25: 1.24 | CE25: 0 | CG25: 0 | CH25: 0 | CI25: 0 | CJ25: 0 | CK25: 0 | CL25: 0 | CM25: 0 | CN25: 0 | CO25: 0 | CP25: 0 | CQ25: 0
A26: ="" ->  | B26: Хлеб ржаной | C26: ="40" -> 40 | D26: 2.64 | E26: 0.00 | F26: 0.48 | G26: 0.00 | H26: 16.68 | I26: 70.71 | J26: 0.08 | K26: 0 | L26: 0.08 | M26: 0 | N26: 0.48 | O26: 12.88 | P26: 3.32 | Q26: 0 | R26: 0 | S26: 0.4 | T26: 1 | U26: 0 | V26: 98 | W26: 14 | X26: 18.8 | Y26: 63.2 | Z26: 1.56 | AA26: 0 | AB26: 2 | AC26: 0.4 | AD26: 0.56 | AE26: 0.07 | AF26: 0.03 | AG26: 0.28 | AH26: 0.8 | AI26: 0 | AJ26: 0 | AK26: 128.8 | AL26: 99.2 | AM26: 170.8 | AN26: 89.2 | AO26: 37.2 | AP26: 79.2 | AQ26: 32 | AR26: 148.4 | AS26: 118.8 | AT26: 116.4 | AU26: 185.6 | AV26: 49.6 | AW26: 124 | AX26: 611.6 | AY26: 0 | AZ26: 210.4 | BA26: 116.4 | BB26: 72 | BC26: 52 | BD26: 0 | BE26: 0 | BF26: 0 | BG26: 0 | BH26: 0 | BI26: 0 | BJ26: 0 | BK26: 0.06 | BL26: 0 | BM26: 0 | BN26: 0.01 | BO26: 0 | BP26: 0 | BQ26: 0 | BR26: 0 | BS26: 0.04 | BT26: 0 | BU26: 0 | BV26: 0.19 | BW26: 0.03 | BX26: 0 | BY26: 0 | BZ26: 0 | CA26: 0 | CB26: 18.8 | CC26: 2.62 | CE26: 0.33 | CG26: 0 | CH26: 0 | CI26: 0 | CJ26: 0 | CK26: 0 | CL26: 0 | CM26: 0 | CN26: 0 | CO26: 0 | CP26: 0 | CQ26: 0
A27: ="" ->  | B27: Соус томатный №248, сб. 2018 г. | C27: ="20" -> 20 | D27: 0.25 | E27: 0.01 | F27: 0.82 | G27: 0.00 | H27: 1.47 | I27: 13.99 | J27: 0.6 | K27: 0.03 | L27: 0 | M27: 0 | N27: 0.77 | O27: 0.6 | P27: 0.09 | Q27: 0 | R27: 0 | S27: 0.07 | T27: 0.11 | U27: 0.19 | V27: 25.63 | W27: 1.31 | X27: 1.79 | Y27: 3.46 | Z27: 0.08 | AA27: 3.04 | AB27: 158.56 | AC27: 38.1 | AD27: 0.06 | AE27: 0 | AF27: 0.01 | AG27: 0.06 | AH27: 0.12 | AI27: 0.54 | AJ27: 0 | AK27: 5.12 | AL27: 4.66 | AM27: 8.47 | AN27: 3.16 | AO27: 1.65 | AP27: 3.65 | AQ27: 1.48 | AR27: 5.24 | AS27: 3.87 | AT27: 4.28 | AU27: 5.18 | AV27: 2.33 | AW27: 3.68 | AX27: 31.36 | AY27: 0 | AZ27: 9.42 | BA27: 5.4 | BB27: 2.9 | BC27: 2.01 | BD27: 0.03 | BE27: 0.01 | BF27: 0.01 | BG27: 0.02 | BH27: 0.02 | BI27: 0.09 | BJ27: 0 | BK27: 0.25 | BL27: 0 | BM27: 0.08 | BN27: 0 | BO27: 0 | BP27: 0 | BQ27: 0.02 | BR27: 0.03 | BS27: 0.2 | BT27: 0 | BU27: 0 | BV27: 0.02 | BW27: 0 | BX27: 0 | BY27: 0 | BZ27: 0 | CA27: 0 | CB27: 21.81 | CC27: 1.8 | CE27: 29.46 | CG27: 0 | CH27: 0 | CI27: 0 | CJ27: 0 | CK27: 0 | CL27: 0 | CM27: 0 | CN27: 0 | CO27: 0 | CP27: 0.2 | CQ27: 0
B28: Итого за 'Обед' | D28: 22.78 | E28: 10.36 | F28: 32.95 | G28: 4.62 | H28: 99.59 | I28: 734.22 | J28: 9.43 | K28: 4.48 | L28: 1.02 | M28: 0 | N28: 41.49 | O28: 44.59 | P28: 13.51 | Q28: 0 | R28: 0 | S28: 2.02 | T28: 8.52 | U28: 715.36 | V28: 1599.99 | W28: 164.53 | X28: 129.24 | Y28: 377.63 | Z28: 6.74 | AA28: 17.99 | AB28: 9058.01 | AC28: 1663.94 | AD28: 5.57 | AE28: 0.31 | AF28: 0.29 | AG28: 4.95 | AH28: 10.8 | AI28: 16.66 | AJ28: 0 | AK28: 1013.41 | AL28: 865.87 | AM28: 1468.12 | AN28: 1278.14 | AO28: 368.66 | AP28: 769.63 | AQ28: 233.97 | AR28: 926.06 | AS28: 1005.98 | AT28: 1175.91 | AU28: 1802.09 | AV28: 567.06 | AW28: 903.4 | AX28: 4054.37 | AY28: 149.28 | AZ28: 1033.38 | BA28: 843 | BB28: 648.72 | BC28: 314.08 | BD28: 0.18 | BE28: 0.08 | BF28: 0.04 | BG28: 0.1 | BH28: 0.12 | BI28: 0.54 | BJ28: 0 | BK28: 1.99 | BL28: 0 | BM28: 0.7 | BN28: 0.02 | BO28: 0.04 | BP28: 0 | BQ28: 0.1 | BR28: 0.17 | BS28: 2.67 | BT28: 0 | BU28: 0 | BV28: 4.51 | BW28: 0.06 | BX28: 0 | BY28: 0 | BZ28: 0 | CA28: 0 | CB28: 599.86 | CC28: =SUM($CC$19:$CC$27) -> 75.5 | CD28: =$I$28/$I$46*100 -> 41.65787234 | CE28: 1527.66 | CG28: 0 | CH28: 0 | CI28: 0 | CJ28: 0 | CK28: 0 | CL28: 0 | CM28: 0 | CN28: 0 | CO28: 0 | CP28: 13.1 | CQ28: 1.75
B29: Полдник
A30: ="" ->  | B30: Ватрушка с творогом №280, сб. 2018 г. | C30: ="50" -> 50 | D30: 6.75 | E30: 3.96 | F30: 2.09 | G30: 0.16 | H30: 20.86 | I30: 127.34 | J30: 1.15 | K30: 0.13 | L30: 0.09 | M30: 0 | N30: 3.72 | O30: 16.29 | P30: 0.84 | Q30: 0 | R30: 0 | S30: 0.19 | T30: 0.49 | U30: 51.13 | V30: 49.82 | W30: 23.41 | X30: 7.37 | Y30: 52.54 | Z30: 0.41 | AA30: 10.28 | AB30: 6.33 | AC30: 18.78 | AD30: 0.51 | AE30: 0.04 | AF30: 0.06 | AG30: 0.31 | AH30: 1.59 | AI30: 0.03 | AJ30: 0 | AK30: 291.53 | AL30: 276.45 | AM30: 513.18 | AN30: 309.37 | AO30: 124.42 | AP30: 218.05 | AQ30: 59.5 | AR30: 285.5 | AS30: 173.15 | AT30: 247.67 | AU30: 277.44 | AV30: 145.11 | AW30: 140.66 | AX30: 1316.94 | AY30: 0.51 | AZ30: 557.86 | BA30: 279.56 | BB30: 217.12 | BC30: 75.16 | BD30: 0.04 | BE30: 0.02 | BF30: 0.01 | BG30: 0.02 | BH30: 0.03 | BI30: 0.13 | BJ30: 0 | BK30: 0.4 | BL30: 0 | BM30: 0.12 | BN30: 0 | BO30: 0 | BP30: 0 | BQ30: 0.03 | BR30: 0.04 | BS30: 0.35 | BT30: 0 | BU30: 0 | BV30: 0.23 | BW30: 0.01 | BX30: 0 | BY30: 0 | BZ30: 0 | CA30: 0 | CB30: 28.49 | CC30: 12.28 | CE30: 11.34 | CG30: 0 | CH30: 0 | CI30: 0 | CJ30: 0 | CK30: 0 | CL30: 0 | CM30: 0 | CN30: 0 | CO30: 0 | CP30: 3.4 | CQ30: 0.1
A31: ="" ->  | B31: Сок фруктовый | C31: ="200" -> 200 | D31: 1.00 | E31: 0.00 | F31: 0.20 | G31: 0.00 | H31: 20.60 | I31: 85.68 | J31: 0 | K31: 0 | L31: 0 | M31: 0 | N31: 19.8 | O31: 0.4 | P31: 0.4 | Q31: 0 | R31: 0 | S31: 1 | T31: 0.6 | U31: 12 | V31: 240 | W31: 14 | X31: 8 | Y31: 14 | Z31: 2.8 | AA31: 0 | AB31: 0 | AC31: 0 | AD31: 0.2 | AE31: 0.02 | AF31: 0.02 | AG31: 0.2 | AH31: 0.4 | AI31: 4 | AJ31: 0.4 | AK31: 16 | AL31: 20 | AM31: 28 | AN31: 28 | AO31: 4 | AP31: 16 | AQ31: 4 | AR31: 14 | AS31: 26 | AT31: 16 | AU31: 116 | AV31: 10 | AW31: 22 | AX31: 64 | AY31: 0 | AZ31: 20 | BA31: 24 | BB31: 10 | BC31: 8 | BD31: 0 | BE31: 0 | BF31: 0 | BG31: 0 | BH31: 0 | BI31: 0 | BJ31: 0 | BK31: 0 | BL31: 0 | BM31: 0 | BN31: 0 | BO31: 0 | BP31: 0 | BQ31: 0 | BR31: 0 | BS31: 0 | BT31: 0 | BU31: 0 | BV31: 0 | BW31: 0 | BX31: 0 | BY31: 0 | BZ31: 0 | CA31: 0 | CB31: 176.2 | CC31: 24 | CE31: 0 | CG31: 0 | CH31: 0 | CI31: 0 | CJ31: 0 | CK31: 0 | CL31: 0 | CM31: 0 | CN31: 0 | CO31: 0 | CP31: 0 | CQ31: 0
A32: ="-" -> - | B32: Мандарины | C32: ="90" -> 90 | D32: 0.53 | E32: 0.00 | F32: 0.13 | G32: 0.13 | H32: 6.26 | I32: 24.51 | J32: 0 | K32: 0 | L32: 0 | M32: 0 | N32: 4.99 | O32: 0 | P32: 1.27 | Q32: 0 | R32: 0 | S32: 0.73 | T32: 0.33 | U32: 7.99 | V32: 103.23 | W32: 23.31 | X32: 7.33 | Y32: 11.32 | Z32: 0.07 | AA32: 0 | AB32: 39.96 | AC32: 6.66 | AD32: 0.13 | AE32: 0.04 | AF32: 0.02 | AG32: 0.13 | AH32: 0.2 | AI32: 25.31 | AJ32: 0 | AK32: 0 | AL32: 0 | AM32: 0 | AN32: 0 | AO32: 0 | AP32: 0 | AQ32: 0 | AR32: 0 | AS32: 0 | AT32: 0 | AU32: 0 | AV32: 0 | AW32: 0 | AX32: 0 | AY32: 0 | AZ32: 0 | BA32: 0 | BB32: 0 | BC32: 0 | BD32: 0 | BE32: 0 | BF32: 0 | BG32: 0 | BH32: 0 | BI32: 0 | BJ32: 0 | BK32: 0 | BL32: 0 | BM32: 0 | BN32: 0 | BO32: 0 | BP32: 0 | BQ32: 0 | BR32: 0 | BS32: 0 | BT32: 0 | BU32: 0 | BV32: 0 | BW32: 0 | BX32: 0 | BY32: 0 | BZ32: 0 | CA32: 0 | CB32: 58.61 | CC32: 18 | CE32: 6.66 | CG32: 0 | CH32: 0 | CI32: 0 | CJ32: 0 | CK32: 0 | CL32: 0 | CM32: 0 | CN32: 0 | CO32: 0 | CP32: 0 | CQ32: 0
B33: Итого за 'Полдник' | D33: 8.29 | E33: 3.96 | F33: 2.42 | G33: 0.29 | H33: 47.72 | I33: 237.53 | J33: 1.15 | K33: 0.13 | L33: 0.09 | M33: 0 | N33: 28.52 | O33: 16.69 | P33: 2.51 | Q33: 0 | R33: 0 | S33: 1.92 | T33: 1.42 | U33: 71.12 | V33: 393.04 | W33: 60.72 | X33: 22.69 | Y33: 77.86 | Z33: 3.28 | AA33: 10.28 | AB33: 46.29 | AC33: 25.44 | AD33: 0.84 | AE33: 0.1 | AF33: 0.1 | AG33: 0.64 | AH33: 2.19 | AI33: 29.34 | AJ33: 0.4 | AK33: 307.53 | AL33: 296.45 | AM33: 541.18 | AN33: 337.37 | AO33: 128.42 | AP33: 234.05 | AQ33: 63.5 | AR33: 299.5 | AS33: 199.15 | AT33: 263.67 | AU33: 393.44 | AV33: 155.11 | AW33: 162.66 | AX33: 1380.94 | AY33: 0.51 | AZ33: 577.86 | BA33: 303.56 | BB33: 227.12 | BC33: 83.16 | BD33: 0.04 | BE33: 0.02 | BF33: 0.01 | BG33: 0.02 | BH33: 0.03 | BI33: 0.13 | BJ33: 0 | BK33: 0.4 | BL33: 0 | BM33: 0.12 | BN33: 0 | BO33: 0 | BP33: 0 | BQ33: 0.03 | BR33: 0.04 | BS33: 0.35 | BT33: 0 | BU33: 0 | BV33: 0.23 | BW33: 0.01 | BX33: 0 | BY33: 0 | BZ33: 0 | CA33: 0 | CB33: 263.29 | CC33: =SUM($CC$29:$CC$32) -> 54.28 | CD33: =$I$33/$I$46*100 -> 13.47687943 | CE33: 18 | CG33: 0 | CH33: 0 | CI33: 0 | CJ33: 0 | CK33: 0 | CL33: 0 | CM33: 0 | CN33: 0 | CO33: 0 | CP33: 3.4 | CQ33: 0.1
B34: Ужин
A35: ="" ->  | B35: Бефстроганов № 250, ДелиПринт 2015 г. | C35: ="100" -> 100 | D35: 12.25 | E35: 0.55 | F35: 14.28 | G35: 0.02 | H35: 5.92 | I35: 198.72 | J35: 0.05 | K35: 0 | L35: 0.01 | M35: 0 | N35: 3.44 | O35: 2.49 | P35: 0.58 | Q35: 0 | R35: 0 | S35: 0 | T35: 0.96 | U35: 116.75 | V35: 181.01 | W35: 24.86 | X35: 22.02 | Y35: 69.1 | Z35: 1.41 | AA35: 0 | AB35: 1.84 | AC35: 0.46 | AD35: 0.22 | AE35: 0.14 | AF35: 0.03 | AG35: 0.44 | AH35: 1.62 | AI35: 0 | AJ35: 0 | AK35: 236.07 | AL35: 251.83 | AM35: 387.04 | AN35: 344.51 | AO35: 50.07 | AP35: 193.3 | AQ35: 59.97 | AR35: 237.16 | AS35: 209.15 | AT35: 364.42 | AU35: 494.26 | AV35: 106.97 | AW35: 218.55 | AX35: 801.81 | AY35: 0 | AZ35: 179.16 | BA35: 199.76 | BB35: 158.58 | BC35: 61.57 | BD35: 0 | BE35: 0 | BF35: 0 | BG35: 0 | BH35: 0 | BI35: 0 | BJ35: 0 | BK35: 0.05 | BL35: 0 | BM35: 0.01 | BN35: 0 | BO35: 0 | BP35: 0 | BQ35: 0 | BR35: 0 | BS35: 0.08 | BT35: 0 | BU35: 0 | BV35: 0.23 | BW35: 0.03 | BX35: 0 | BY35: 0 | BZ35: 0 | CA35: 0 | CB35: 15.33 | CC35: 52.62 | CE35: 0.31 | CG35: 0 | CH35: 0 | CI35: 0 | CJ35: 0 | CK35: 0 | CL35: 0 | CM35: 0 | CN35: 0 | CO35: 0 | CP35: 0 | CQ35: 0.3
A36: ="аа" -> аа | B36: Картофельное пюре с морковью № 177, сб. 2018 г. | C36: ="180" -> 180 | D36: 3.29 | E36: 0.68 | F36: 3.00 | G36: 0.00 | H36: 22.62 | I36: 122.63 | J36: 0 | K36: 0 | L36: 0 | M36: 0 | N36: 4.26 | O36: 16.16 | P36: 2.2 | Q36: 0 | R36: 0 | S36: 0 | T36: 2.88 | U36: 360.08 | V36: 650.84 | W36: 41.37 | X36: 35.23 | Y36: 88.11 | Z36: 1.11 | AA36: 6.79 | AB36: 2735.97 | AC36: 0 | AD36: 0 | AE36: 0.1 | AF36: 0.1 | AG36: 1.32 | AH36: 0 | AI36: 4.48 | AJ36: 0 | AK36: 0 | AL36: 0 | AM36: 0 | AN36: 0 | AO36: 0 | AP36: 0 | AQ36: 0 | AR36: 0 | AS36: 0 | AT36: 0 | AU36: 0 | AV36: 0 | AW36: 0 | AX36: 0 | AY36: 0 | AZ36: 0 | BA36: 0 | BB36: 0 | BC36: 0 | BD36: 0 | BE36: 0 | BF36: 0 | BG36: 0 | BH36: 0 | BI36: 0 | BJ36: 0 | BK36: 0 | BL36: 0 | BM36: 0 | BN36: 0 | BO36: 0 | BP36: 0 | BQ36: 0 | BR36: 0 | BS36: 0 | BT36: 0 | BU36: 0 | BV36: 0 | BW36: 0 | BX36: 0 | BY36: 0 | BZ36: 0 | CA36: 0 | CB36: 0 | CC36: 12.09 | CE36: 462.78 | CG36: 0 | CH36: 0 | CI36: 0 | CJ36: 0 | CK36: 0 | CL36: 0 | CM36: 0 | CN36: 0 | CO36: 0 | CP36: 0 | CQ36: 0.9
A37: ="" ->  | B37: Компот из сухофруктов №310, сб.2021 | C37: ="180" -> 180 | D37: 0.16 | E37: 0.00 | F37: 0.05 | G37: 0.00 | H37: 10.95 | I37: 42.74 | J37: 0 | K37: 0 | L37: 0 | M37: 0 | N37: 10.95 | O37: 0 | P37: 0 | Q37: 0 | R37: 0 | S37: 0 | T37: 0.01 | U37: 0.09 | V37: 0.27 | W37: 0.26 | X37: 0 | Y37: 0 | Z37: 0.03 | AA37: 0 | AB37: 0 | AC37: 0 | AD37: 0 | AE37: 0 | AF37: 0 | AG37: 0 | AH37: 0 | AI37: 0 | AJ37: 0 | AK37: 0 | AL37: 0 | AM37: 0 | AN37: 0 | AO37: 0 | AP37: 0 | AQ37: 0 | AR37: 0 | AS37: 0 | AT37: 0 | AU37: 0 | AV37: 0 | AW37: 0 | AX37: 0 | AY37: 0 | AZ37: 0 | BA37: 0 | BB37: 0 | BC37: 0 | BD37: 0 | BE37: 0 | BF37: 0 | BG37: 0 | BH37: 0 | BI37: 0 | BJ37: 0 | BK37: 0 | BL37: 0 | BM37: 0 | BN37: 0 | BO37: 0 | BP37: 0 | BQ37: 0 | BR37: 0 | BS37: 0 | BT37: 0 | BU37: 0 | BV37: 0 | BW37: 0 | BX37: 0 | BY37: 0 | BZ37: 0 | CA37: 0 | CB37: 194.41 | CC37: 4.07 | CE37: 0 | CG37: 0 | CH37: 0 | CI37: 0 | CJ37: 0 | CK37: 0 | CL37: 0 | CM37: 0 | CN37: 0 | CO37: 0 | CP37: 9 | CQ37: 0
A38: ="-" -> - | B38: Хлеб пшеничный формовой из муки 1 сорта | C38: ="20" -> 20 | D38: 1.52 | E38: 0.00 | F38: 0.18 | G38: 0.18 | H38: 9.38 | I38: 45.93 | J38: 0 | K38: 0 | L38: 0 | M38: 0 | N38: 0.22 | O38: 9.12 | P38: 0.04 | Q38: 0 | R38: 0 | S38: 0 | T38: 0.36 | U38: 0 | V38: 0 | W38: 0 | X38: 0 | Y38: 0 | Z38: 0 | AA38: 0 | AB38: 0 | AC38: 0 | AD38: 0 | AE38: 0 | AF38: 0 | AG38: 0 | AH38: 0 | AI38: 0 | AJ38: 0 | AK38: 73.4 | AL38: 76.4 | AM38: 117 | AN38: 38.8 | AO38: 23 | AP38: 46 | AQ38: 17.4 | AR38: 83.2 | AS38: 51.6 | AT38: 72 | AU38: 59.4 | AV38: 31.2 | AW38: 55.2 | AX38: 461.6 | AY38: 0 | AZ38: 150.4 | BA38: 65.4 | BB38: 43.4 | BC38: 34.4 | BD38: 0 | BE38: 0 | BF38: 0 | BG38: 0 | BH38: 0 | BI38: 0 | BJ38: 0 | BK38: 0.02 | BL38: 0 | BM38: 0 | BN38: 0 | BO38: 0 | BP38: 0 | BQ38: 0 | BR38: 0 | BS38: 0.02 | BT38: 0 | BU38: 0 | BV38: 0.08 | BW38: 0 | BX38: 0 | BY38: 0 | BZ38: 0 | CA38: 0 | CB38: 7.82 | CC38: 1.24 | CE38: 0 | CG38: 0 | CH38: 0 | CI38: 0 | CJ38: 0 | CK38: 0 | CL38: 0 | CM38: 0 | CN38: 0 | CO38: 0 | CP38: 0 | CQ38: 0
A39: ="" ->  | B39: Хлеб ржаной | C39: ="40" -> 40 | D39: 2.64 | E39: 0.00 | F39: 0.48 | G39: 0.00 | H39: 16.68 | I39: 70.71 | J39: 0.08 | K39: 0 | L39: 0.08 | M39: 0 | N39: 0.48 | O39: 12.88 | P39: 3.32 | Q39: 0 | R39: 0 | S39: 0.4 | T39: 1 | U39: 0 | V39: 98 | W39: 14 | X39: 18.8 | Y39: 63.2 | Z39: 1.56 | AA39: 0 | AB39: 2 | AC39: 0.4 | AD39: 0.56 | AE39: 0.07 | AF39: 0.03 | AG39: 0.28 | AH39: 0.8 | AI39: 0 | AJ39: 0 | AK39: 128.8 | AL39: 99.2 | AM39: 170.8 | AN39: 89.2 | AO39: 37.2 | AP39: 79.2 | AQ39: 32 | AR39: 148.4 | AS39: 118.8 | AT39: 116.4 | AU39: 185.6 | AV39: 49.6 | AW39: 124 | AX39: 611.6 | AY39: 0 | AZ39: 210.4 | BA39: 116.4 | BB39: 72 | BC39: 52 | BD39: 0 | BE39: 0 | BF39: 0 | BG39: 0 | BH39: 0 | BI39: 0 | BJ39: 0 | BK39: 0.06 | BL39: 0 | BM39: 0 | BN39: 0.01 | BO39: 0 | BP39: 0 | BQ39: 0 | BR39: 0 | BS39: 0.04 | BT39: 0 | BU39: 0 | BV39: 0.19 | BW39: 0.03 | BX39: 0 | BY39: 0 | BZ39: 0 | CA39: 0 | CB39: 18.8 | CC39: 2.62 | CE39: 0.33 | CG39: 0 | CH39: 0 | CI39: 0 | CJ39: 0 | CK39: 0 | CL39: 0 | CM39: 0 | CN39: 0 | CO39: 0 | CP39: 0 | CQ39: 0
B40: Итого за 'Ужин' | D40: 19.86 | E40: 1.22 | F40: 18.00 | G40: 0.20 | H40: 65.55 | I40: 480.73 | J40: 0.13 | K40: 0 | L40: 0.09 | M40: 0 | N40: 19.04 | O40: 40.42 | P40: 6.09 | Q40: 0 | R40: 0 | S40: 0.4 | T40: 4.25 | U40: 360.17 | V40: 749.11 | W40: 55.64 | X40: 54.03 | Y40: 151.31 | Z40: 2.7 | AA40: 6.79 | AB40: 2737.97 | AC40: 0.86 | AD40: 0.78 | AE40: 0.17 | AF40: 0.13 | AG40: 1.6 | AH40: 2.42 | AI40: 4.48 | AJ40: 0 | AK40: 438.27 | AL40: 427.43 | AM40: 674.84 | AN40: 472.51 | AO40: 110.27 | AP40: 318.5 | AQ40: 109.37 | AR40: 468.76 | AS40: 379.55 | AT40: 552.82 | AU40: 739.26 | AV40: 187.77 | AW40: 397.75 | AX40: 1875.01 | AY40: 0 | AZ40: 539.96 | BA40: 381.56 | BB40: 273.98 | BC40: 147.97 | BD40: 0 | BE40: 0 | BF40: 0 | BG40: 0 | BH40: 0 | BI40: 0 | BJ40: 0 | BK40: 0.12 | BL40: 0 | BM40: 0.01 | BN40: 0.01 | BO40: 0 | BP40: 0 | BQ40: 0 | BR40: 0.01 | BS40: 0.14 | BT40: 0 | BU40: 0 | BV40: 0.5 | BW40: 0.06 | BX40: 0 | BY40: 0 | BZ40: 0 | CA40: 0 | CB40: 236.36 | CC40: =SUM($CC$34:$CC$39) -> 72.64 | CD40: =$I$40/$I$46*100 -> 27.27546099 | CE40: 463.12 | CG40: 0 | CH40: 0 | CI40: 0 | CJ40: 0 | CK40: 0 | CL40: 0 | CM40: 0 | CN40: 0 | CO40: 0 | CP40: 9 | CQ40: 1.2
B41: Ужин 2
A42: ="" ->  | B42: Кефир №297 сб. 2021 | C42: ="180" -> 180 | D42: 5.12 | E42: 0.00 | F42: 5.64 | G42: 0.00 | H42: 7.06 | I42: 98.08 | J42: 0 | K42: 0 | L42: 0 | M42: 0 | N42: 7.06 | O42: 0 | P42: 0 | Q42: 0 | R42: 0 | S42: 0 | T42: 0 | U42: 0 | V42: 0 | W42: 0 | X42: 0 | Y42: 0 | Z42: 0 | AA42: 0 | AB42: 0 | AC42: 0 | AD42: 0 | AE42: 0 | AF42: 0 | AG42: 0 | AH42: 0 | AI42: 0 | AJ42: 0 | AK42: 0 | AL42: 0 | AM42: 0 | AN42: 0 | AO42: 0 | AP42: 0 | AQ42: 0 | AR42: 0 | AS42: 0 | AT42: 0 | AU42: 0 | AV42: 0 | AW42: 0 | AX42: 0 | AY42: 0 | AZ42: 0 | BA42: 0 | BB42: 0 | BC42: 0 | BD42: 0 | BE42: 0 | BF42: 0 | BG42: 0 | BH42: 0 | BI42: 0 | BJ42: 0 | BK42: 0 | BL42: 0 | BM42: 0 | BN42: 0 | BO42: 0 | BP42: 0 | BQ42: 0 | BR42: 0 | BS42: 0 | BT42: 0 | BU42: 0 | BV42: 0 | BW42: 0 | BX42: 0 | BY42: 0 | BZ42: 0 | CA42: 0 | CB42: 158.94 | CC42: 14.2 | CE42: 0 | CG42: 0 | CH42: 0 | CI42: 0 | CJ42: 0 | CK42: 0 | CL42: 0 | CM42: 0 | CN42: 0 | CO42: 0 | CP42: 0 | CQ42: 0
A43: ="-" -> - | B43: Хлеб пшеничный формовой из муки 1 сорта | C43: ="20" -> 20 | D43: 1.52 | E43: 0.00 | F43: 0.18 | G43: 0.18 | H43: 9.38 | I43: 45.93 | J43: 0 | K43: 0 | L43: 0 | M43: 0 | N43: 0.22 | O43: 9.12 | P43: 0.04 | Q43: 0 | R43: 0 | S43: 0 | T43: 0.36 | U43: 0 | V43: 0 | W43: 0 | X43: 0 | Y43: 0 | Z43: 0 | AA43: 0 | AB43: 0 | AC43: 0 | AD43: 0 | AE43: 0 | AF43: 0 | AG43: 0 | AH43: 0 | AI43: 0 | AJ43: 0 | AK43: 73.4 | AL43: 76.4 | AM43: 117 | AN43: 38.8 | AO43: 23 | AP43: 46 | AQ43: 17.4 | AR43: 83.2 | AS43: 51.6 | AT43: 72 | AU43: 59.4 | AV43: 31.2 | AW43: 55.2 | AX43: 461.6 | AY43: 0 | AZ43: 150.4 | BA43: 65.4 | BB43: 43.4 | BC43: 34.4 | BD43: 0 | BE43: 0 | BF43: 0 | BG43: 0 | BH43: 0 | BI43: 0 | BJ43: 0 | BK43: 0.02 | BL43: 0 | BM43: 0 | BN43: 0 | BO43: 0 | BP43: 0 | BQ43: 0 | BR43: 0 | BS43: 0.02 | BT43: 0 | BU43: 0 | BV43: 0.08 | BW43: 0 | BX43: 0 | BY43: 0 | BZ43: 0 | CA43: 0 | CB43: 7.82 | CC43: 1.24 | CE43: 0 | CG43: 0 | CH43: 0 | CI43: 0 | CJ43: 0 | CK43: 0 | CL43: 0 | CM43: 0 | CN43: 0 | CO43: 0 | CP43: 0 | CQ43: 0
B44: Итого за 'Ужин 2' | D44: 6.64 | E44: 0.00 | F44: 5.82 | G44: 0.18 | H44: 16.44 | I44: 144.01 | J44: 0 | K44: 0 | L44: 0 | M44: 0 | N44: 7.28 | O44: 9.12 | P44: 0.04 | Q44: 0 | R44: 0 | S44: 0 | T44: 0.36 | U44: 0 | V44: 0 | W44: 0 | X44: 0 | Y44: 0 | Z44: 0 | AA44: 0 | AB44: 0 | AC44: 0 | AD44: 0 | AE44: 0 | AF44: 0 | AG44: 0 | AH44: 0 | AI44: 0 | AJ44: 0 | AK44: 73.4 | AL44: 76.4 | AM44: 117 | AN44: 38.8 | AO44: 23 | AP44: 46 | AQ44: 17.4 | AR44: 83.2 | AS44: 51.6 | AT44: 72 | AU44: 59.4 | AV44: 31.2 | AW44: 55.2 | AX44: 461.6 | AY44: 0 | AZ44: 150.4 | BA44: 65.4 | BB44: 43.4 | BC44: 34.4 | BD44: 0 | BE44: 0 | BF44: 0 | BG44: 0 | BH44: 0 | BI44: 0 | BJ44: 0 | BK44: 0.02 | BL44: 0 | BM44: 0 | BN44: 0 | BO44: 0 | BP44: 0 | BQ44: 0 | BR44: 0 | BS44: 0.02 | BT44: 0 | BU44: 0 | BV44: 0.08 | BW44: 0 | BX44: 0 | BY44: 0 | BZ44: 0 | CA44: 0 | CB44: 166.76 | CC44: =SUM($CC$41:$CC$43) -> 15.44 | CD44: =$I$44/$I$46*100 -> 8.170780142 | CE44: 0 | CG44: 0 | CH44: 0 | CI44: 0 | CJ44: 0 | CK44: 0 | CL44: 0 | CM44: 0 | CN44: 0 | CO44: 0 | CP44: 0 | CQ44: 0
B45: Итого за день | D45: 86.70 | E45: 38.91 | F45: 92.03 | G45: 6.07 | H45: 295.26 | I45: 2256.66 | J45: 18.95 | K45: 4.83 | L45: 2.73 | M45: 0 | N45: 119.61 | O45: 149.54 | P45: 26.11 | Q45: 0 | R45: 0 | S45: 4.65 | T45: 19.71 | U45: 1564.78 | V45: 3132.33 | W45: 609.71 | X45: 248.67 | Y45: 1017.77 | Z45: 15.95 | AA45: 323.92 | AB45: 12058.18 | AC45: 1781.04 | AD45: 7.33 | AE45: 0.78 | AF45: 1.29 | AG45: 8.38 | AH45: 16.9 | AI45: 54.61 | AJ45: 0.4 | AK45: 2287.42 | AL45: 2092.85 | AM45: 3506.73 | AN45: 2444.53 | AO45: 780.05 | AP45: 1651.88 | AQ45: 568.15 | AR45: 2248.53 | AS45: 1922.27 | AT45: 2441.99 | AU45: 3393.49 | AV45: 1139.45 | AW45: 1793.21 | AX45: 10149.52 | AY45: 149.79 | AZ45: 3181 | BA45: 1989.52 | BB45: 1510.02 | BC45: 739.71 | BD45: 0.5 | BE45: 0.24 | BF45: 0.16 | BG45: 0.39 | BH45: 0.45 | BI45: 1.8 | BJ45: 0.04 | BK45: 5.53 | BL45: 0.01 | BM45: 1.68 | BN45: 0.04 | BO45: 0.04 | BP45: 0 | BQ45: 0.28 | BR45: 0.53 | BS45: 5.57 | BT45: 0 | BU45: 0 | BV45: 5.77 | BW45: 0.15 | BX45: 0 | BY45: 0 | BZ45: 0 | CA45: 0 | CB45: 1687.54 | CC45: 313.68 | CE45: 2333.61 | CG45: 0 | CH45: 0 | CI45: 0 | CJ45: 0 | CK45: 0 | CL45: 0 | CM45: 0 | CN45: 0 | CO45: 0 | CP45: 33.5 | CQ45: 3.35
B46: Норма (СанПиН 2.3/2.4.3590-20 7-11 лет) | D46: 57.75 | E46: 0.00 | F46: 59.25 | G46: 0.00 | H46: 251.25 | I46: 1762.50 | V46: 0 | W46: 0 | X46: 0 | Y46: 0 | Z46: 0 | AA46: 0 | AB46: 0 | AC46: 525 | AD46: 0 | AE46: 0.9 | AF46: 1.05 | AI46: 45 | CI46: 0 | CL46: 0 | CO46: 0
B47: Отклонение | D47: =D45-D46 -> 28.95 | E47: =E45-E46 -> 38.91 | F47: =F45-F46 -> 32.78 | G47: =G45-G46 -> 6.07 | H47: =H45-H46 -> 44.01 | I47: =I45-I46 -> 494.16 | V47: =V45-V46 -> 3132.33 | W47: =W45-W46 -> 609.71 | X47: =X45-X46 -> 248.67 | Y47: =Y45-Y46 -> 1017.77 | Z47: =Z45-Z46 -> 15.95 | AA47: =AA45-AA46 -> 323.92 | AB47: =AB45-AB46 -> 12058.18 | AC47: =AC45-AC46 -> 1256.04 | AD47: =AD45-AD46 -> 7.33 | AE47: =AE45-AE46 -> -0.12 | AF47: =AF45-AF46 -> 0.24 | AI47: =AI45-AI46 -> 9.61 | CI47: =CI45-CI46 -> 0 | CL47: =CL45-CL46 -> 0 | CO47: =CO45-CO46 -> 0
B48: Содержание, % от калорийности | D48: 15.00 | F48: 37.00 | H48: 48.00

Sheet 1
A1: Школа | B1: ГБОУ Белокатайская КШИ | E1: Отд./корп | I1: Дата | J1: 2024-12-10
A3: Прием пищи | B3: Раздел | C3: № рец. | D3: Блюдо | E3: Выход, г | F3: Цена | G3: Калорийность | H3: Белки | I3: Жиры | J3: Углеводы
A4: Завтрак | B4: гор.блюдо | D4: Омлет с зеленым горошком №235, сб.2018г. | E4: 200 | F4: 56.68 | G4: 263 | H4: 17 | I4: 19 | J4: 6
C5: аа | D5: Бутерброд с маслом и сыром №2 сб.2018г. | E5: 30/10/10 | F5: 16.92 | G5: 170 | H5: 5 | I5: 10 | J5: 14
B6: гор.напиток | C6: аа | D6: Кофейный напиток на молоке №304,сб.2018г. | E6: 200 | F6: 7.83 | G6: 94 | H6: 3 | I6: 3 | J6: 15
B7: хлеб бел. | C7: - | D7: Хлеб пшеничный формовой из муки 1 сорта | E7: 50 | F7: 3.09 | G7: 115 | H7: 4 | I7: 0 | J7: 23
A11: Завтрак 2 | B11: напиток | C11: - | D11: Кисель с витаминами Витошка | E11: 200 | F11: 11.30 | G11: 18 | H11: 0 | I11: 0 | J11: 7
B13: конд.изд.
A14: Обед | B14: закуска | D14: Салат из моркови с курагой или изюмом №18, сб.2018 г**. | E14: 80 | F14: 9.33 | G14: 69 | H14: 2 | I14: 0 | J14: 20
B15: 1 блюдо | C15: аа | D15: Борщ с капустой и картофелем №58, сб.2018 г. | E15: 250 | F15: 10.98 | G15: 98 | H15: 2 | I15: 4 | J15: 15
B16: 2 блюдо | D16: Тефтели из говядины №108, сб. 2018 г. | E16: 90 | F16: 37.07 | G16: 278 | H16: 12 | I16: 20 | J16: 14
B17: гарнир | C17: аа | D17: Рагу из овощей №158, сб. 2018 г. | E17: 150 | F17: 10.33 | G17: 137 | H17: 3 | I17: 7 | J17: 18
B18: напиток | D18: Чай с лимоном и сахаром №302, сб. 2018 г. | E18: 180 | F18: 2.13 | G18: 22 | H18: 0 | I18: 0 | J18: 5
B19: хлеб бел. | C19: - | D19: Хлеб пшеничный формовой из муки 1 сорта | E19: 20 | F19: 1.24 | G19: 46 | H19: 2 | I19: 0 | J19: 9
B20: хлеб черн. | D20: Хлеб ржаной | E20: 40 | F20: 2.62 | G20: 71 | H20: 3 | I20: 0 | J20: 17
A23: Полдник | B23: булочное | D23: Ватрушка с творогом №280, сб. 2018 г. | E23: 50 | F23: 12.28 | G23: 127 | H23: 7 | I23: 2 | J23: 21
B24: напиток | D24: Сок фруктовый | E24: 200 | F24: 24.00 | G24: 86 | H24: 1 | I24: 0 | J24: 21
C25: - | D25: Мандарины | E25: 90 | F25: 18.00 | G25: 25 | H25: 1 | I25: 0 | J25: 6
A27: Ужин | B27: гор.блюдо | D27: Бефстроганов № 250, ДелиПринт 2015 г. | E27: 100 | F27: 52.62 | G27: 199 | H27: 12 | I27: 14 | J27: 6
B28: гарнир | C28: аа | D28: Картофельное пюре с морковью № 177, сб. 2018 г. | E28: 180 | F28: 12.09 | G28: 123 | H28: 3 | I28: 3 | J28: 23
B29: напиток | D29: Компот из сухофруктов №310, сб.2021 | E29: 180 | F29: 4.07 | G29: 43 | H29: 0 | I29: 0 | J29: 11
B30: хлеб бел. | C30: - | D30: Хлеб пшеничный формовой из муки 1 сорта | E30: 20 | F30: 1.24 | G30: 46 | H30: 2 | I30: 0 | J30: 9
B31: хлеб черн. | D31: Хлеб ржаной | E31: 40 | F31: 2.62 | G31: 71 | H31: 3 | I31: 0 | J31: 17
B32: закуска
A33: Ужин 2 | B33: кисломол. | D33: Кефир №297 сб. 2021 | E33: 180 | F33: 14.20 | G33: 98 | H33: 5 | I33: 6 | J33: 7
C34: - | D34: Хлеб пшеничный формовой из муки 1 сорта | E34: 20 | F34: 1.24 | G34: 46 | H34: 2 | I34: 0 | J34: 9

Sheet Dop
A1: Дата составления | B1: 2024-12-10T21:03:21
A2: Дата печати | B2: 2024-12-09T11:10:36
A3: Группа | B3: школы младшие классы
A4: Физ.Норма | B4: СанПиН 2.3/2.4.3590-20 7-11 лет
A5: Предприятие | B5: 32
B6: 10.12.2024

Sheet SvodMenu
A4: МЕНЮ
B5: =IF(ПОП_Имя="","",ПОП_Имя) -> 32
B6: =IF(Дата_Сост="","",Дата_Сост) -> 45636.87733
A9: Номер | B9: Наименование изделий (блюд)
